bitfinex/quotes_SOLUSD_20220208
["timestamp","ask_amount","ask_price","bid_price","bid_amount"]
[1644341140824,63.21049103,111.26,111.12,0.024]
[1644341141442,110.77199103,111.26,111.12,13.5192]
[1644341141643,108.66423554,111.26,111.13,35.07885243]
[1644341141842,108.66423554,111.26,111.14,0.024]
[1644341142043,108.66423554,111.26,111.14,1.98002991]
[1644341142244,108.66423554,111.26,111.15,0.024]
[1644341142445,2.10775549,111.25,111.15,0.024]
[1644341142643,2.10775549,111.25,111.13,13.5173]
[1644341142644,13.495,111.22,111.13,13.5173]
[1644341142843,13.745,111.22,111.14,0.024]
[1644341143247,37.87043722,111.21,111.14,0.024]
[1644341143446,46.05243722,111.21,111.12,14.71170223]
[1644341143846,36.55480247,111.19,111.12,28.18340223]
[1644341144246,24.6865,111.24,111.12,29.46288911]
[1644341144446,24.6865,111.24,111.13,0.024]
[1644341145147,39.28910523,111.23,111.13,0.024]
[1644341145747,52.78210523,111.23,111.13,13.5176]
[1644341145949,52.78210523,111.23,111.14,37.17772729]
[1644341146152,53.03210523,111.23,111.15,0.024]
[1644341148855,53.03210523,111.23,111.13,13.4948]
[1644341148856,53.03210523,111.23,111.13,13.5188]
[1644341149054,53.03210523,111.23,111.14,0.024]
[1644341149756,53.03210523,111.23,111.14,13.5174]
[1644341149953,53.03210523,111.23,111.15,0.024]
[1644341150853,55.13986072,111.23,111.12,43.22756765]
[1644341151053,55.13986072,111.23,111.12,56.72346765]
[1644341151255,55.13986072,111.23,111.12,56.97346765]
[1644341154558,55.13986072,111.23,111.12,13.7699]
[1644341155158,108.52986072,111.23,111.12,13.5199]
[1644341155357,108.52986072,111.23,111.12,0.024]
[1644341155557,108.52986072,111.23,111.1,0.024]
[1644341155759,45.68941493,111.2,111.13,0.024]
[1644341156061,41.66408733,111.18,111.08,0.024]
[1644341156260,41.91408733,111.18,111.08,13.525]
[1644341156462,41.91408733,111.18,111.09,0.024]
[1644341157361,13.5011,111.16,111.09,0.024]
[1644341157560,13.5011,111.16,111.08,0.024]
[1644341157760,13.7511,111.16,111.08,0.024]
[1644341157958,13.7511,111.16,111.06,1.27948688]
[1644341158160,0.25,111.16,111.09,1.96162579]
[1644341158360,45.4955548,111.15,111.09,1.96162579]
[1644341158658,45.4955548,111.15,111.07,1.27948688]
[1644341158859,45.7455548,111.15,111.07,1.52948688]
[1644341159259,45.7455548,111.15,111.07,0.25]
[1644341159463,45.7455548,111.15,111.07,0.274]
[1644341159759,45.7455548,111.15,111.08,13.5005]
[1644341159959,45.7455548,111.15,111.08,13.5245]
[1644341160161,45.7455548,111.15,111.08,13.7745]
[1644341160660,45.7455548,111.15,111.08,13.5245]
[1644341161062,59.2477548,111.15,111.08,13.5245]
[1644341161664,59.2477548,111.15,111.08,0.024]
[1644341162063,2.10775549,111.14,111.08,0.024]
[1644341162262,13.5079,111.13,111.05,1.30348688]
[1644341162461,13.5079,111.13,111.0,23.158]
[1644341162462,13.5079,111.13,111.06,0.024]
[1644341162662,2.10775549,111.12,111.03,1.30348688]
[1644341162863,2.10775549,111.12,111.05,0.024]
[1644341163062,2.10775549,111.12,111.02,1.27948688]
[1644341163063,43.57667882,111.11,111.02,1.27948688]
[1644341163271,43.82667882,111.11,111.03,0.024]
[1644341163467,13.5099,111.1,111.02,0.024]
[1644341163663,40.59589062,111.09,111.02,0.024]
[1644341163864,40.59589062,111.09,111.02,12.00028387]
[1644341164064,40.59589062,111.09,111.02,26.76467075]
[1644341164266,40.84589062,111.09,111.02,15.06238688]
[1644341164464,40.84589062,111.09,111.02,13.7829]
[1644341164664,40.59589062,111.09,111.02,13.7829]
[1644341166068,40.84589062,111.09,111.02,13.7829]
[1644341166467,40.59589062,111.09,111.02,13.7829]
[1644341167769,40.84589062,111.09,111.02,13.7829]
[1644341167969,48.0463,111.14,111.02,13.7829]
[1644341168173,13.5034,111.15,111.03,0.024]
[1644341168373,46.8328,111.21,111.08,13.501]
[1644341168576,46.8328,111.21,111.09,0.024]
[1644341168774,48.94055549,111.21,111.09,0.024]
[1644341168975,42.56255751,111.2,111.09,0.024]
[1644341169176,13.499,111.18,111.09,0.024]
[1644341169973,34.39198322,111.17,111.08,0.024]
[1644341170173,47.89288322,111.17,111.09,13.5005]
[1644341170372,34.39198322,111.17,111.09,13.5005]
[1644341170574,34.39198322,111.17,111.09,13.7745]
[1644341170781,34.64198322,111.17,111.09,13.7505]
[1644341171383,34.39198322,111.17,111.09,13.7745]
[1644341171573,34.39198322,111.17,111.09,15.74673078]
[1644341171773,14.77948495,111.23,111.12,13.4956]
[1644341171976,263.30936426,111.24,111.12,13.4956]
[1644341172176,263.30936426,111.24,111.13,1.99623078]
[1644341172381,263.30936426,111.24,111.14,0.024]
[1644341172777,35.61315379,111.23,111.14,0.024]
[1644341173275,37.72090928,111.23,111.14,0.024]
[1644341173476,51.21380928,111.23,111.14,0.024]
[1644341173675,51.21380928,111.23,111.12,0.024]
[1644341173875,51.46380928,111.23,111.12,0.024]
[1644341174683,51.46380928,111.23,111.13,13.4958]
[1644341174876,51.46380928,111.23,111.14,0.024]
[1644341175277,51.46380928,111.23,111.12,0.024]
[1644341176080,51.21380928,111.23,111.12,0.024]
[1644341176879,51.21380928,111.23,111.14,13.4948]
[1644341177080,51.21380928,111.23,111.15,0.024]
[1644341177281,51.46380928,111.23,111.15,0.024]
[1644341177680,51.46380928,111.23,111.12,13.5202]
[1644341178079,51.46380928,111.23,111.12,13.7702]
[1644341181082,51.46380928,111.23,111.12,13.5202]
[1644341181281,51.46380928,111.23,111.12,13.7702]
[1644341182604,51.46380928,111.23,111.12,13.5202]
[1644341183004,105.47380928,111.23,111.12,13.5202]
[1644341183204,105.47380928,111.23,111.12,0.024]
[1644341183405,105.47380928,111.23,111.11,13.5226]
[1644341183604,51.46380928,111.23,111.12,0.024]
[1644341184507,13.4965,111.2,111.12,13.5211]
[1644341184704,48.64870734,111.19,111.12,13.7711]
[1644341185106,48.89870734,111.19,111.12,13.7471]
[1644341186407,62.39600734,111.19,111.12,13.7471]
[1644341186609,62.39600734,111.19,111.12,13.4971]
[1644341188408,62.39600734,111.19,111.11,13.5225]
[1644341189409,62.39600734,111.19,111.12,25.68802199]
[1644341189610,62.39600734,111.19,111.12,39.20942199]
[1644341189810,62.39600734,111.19,111.12,39.18542199]
[1644341190212,47.6951,111.24,111.13,89.96987426]
[1644341190511,25.28473984,111.27,111.13,90.31529329]
[1644341190712,13.4904,111.25,111.15,13.493]
[1644341190913,13.4904,111.25,111.16,0.024]
[1644341191113,43.37812006,111.24,111.16,1.99387426]
[1644341191311,43.37812006,111.24,111.17,0.024]
[1644341191512,43.37812006,111.24,111.16,0.274]
[1644341191714,43.37812006,111.24,111.17,0.024]
[1644341191915,43.37812006,111.24,111.16,0.25]
[1644341192313,43.62812006,111.24,111.16,0.25]
[1644341192517,43.62812006,111.24,111.15,0.024]
[1644341192715,43.62812006,111.24,111.18,13.49]
[1644341192915,57.11982006,111.24,111.15,1.99398641]
[1644341193116,2.10775549,111.23,111.14,0.024]
[1644341193315,2.10775549,111.23,111.11,24.36318688]
[1644341193518,82.27499123,111.24,111.13,0.024]
[1644341193715,67.70202006,111.24,111.13,0.024]
[1644341193915,67.70202006,111.24,111.13,60.0653347]
[1644341194115,13.4929,111.23,111.14,0.024]
[1644341194314,44.37201882,111.22,111.14,0.024]
[1644341194714,44.37201882,111.22,111.13,0.024]
[1644341195122,44.37201882,111.22,111.14,13.494]
[1644341195317,44.37201882,111.22,111.14,39.19935631]
[1644341195517,44.37201882,111.22,111.15,49.81950837]
[1644341195716,44.37201882,111.22,111.15,47.87352196]
[1644341195921,44.37201882,111.22,111.15,47.84952196]
[1644341196117,44.37201882,111.22,111.14,0.024]
[1644341196316,44.37201882,111.22,111.17,13.4904]
[1644341197619,50.37201882,111.22,111.14,0.024]
[1644341198119,50.62201882,111.22,111.14,0.024]
[1644341198521,118.12581882,111.22,111.13,0.024]
[1644341198722,144.77767431,111.22,111.13,0.024]
[1644341198919,88.65991882,111.22,111.13,0.024]
[1644341199121,111.65941882,111.22,111.13,0.024]
[1644341199322,2.10775549,111.21,111.13,0.024]
[1644341199520,46.23972045,111.2,111.1,0.024]
[1644341199720,46.23972045,111.2,111.12,0.024]
[1644341199926,2.10775549,111.19,111.11,0.024]
[1644341200124,8.10775549,111.19,111.09,1.30348688]
[1644341200322,8.10775549,111.19,111.1,0.024]
[1644341200522,40.15525324,111.18,111.1,25.71841336]
[1644341200722,40.15525324,111.18,111.11,0.024]
[1644341200921,46.15525324,111.18,111.11,25.69441336]
[1644341201122,2.10775549,111.17,111.09,0.024]
[1644341201525,8.10775549,111.17,111.07,1.27948688]
[1644341201725,13.5032,111.16,111.08,0.024]
[1644341201925,38.33903765,111.15,111.08,0.024]
[1644341202128,44.33903765,111.15,111.08,0.024]
[1644341203426,13.5038,111.14,111.08,0.024]
[1644341203625,38.01634469,111.13,111.06,15.05768688]
[1644341204028,44.01634469,111.13,111.06,15.05768688]
[1644341204227,44.01634469,111.13,111.06,14.80768688]
[1644341204428,59.62830018,111.13,111.06,1.27948688]
[1644341204626,59.62830018,111.13,111.04,14.78678688]
[1644341204827,59.62830018,111.13,111.05,0.024]
[1644341205229,59.62830018,111.13,111.05,39.54650466]
[1644341205429,44.01634469,111.13,111.05,39.54650466]
[1644341205627,44.01634469,111.13,111.07,34.49004739]
[1644341205828,44.01634469,111.13,111.07,34.74004739]
[1644341205829,38.01634469,111.13,111.07,34.74004739]
[1644341206027,38.01634469,111.13,111.07,0.25]
[1644341207228,38.26634469,111.13,111.06,42.56675289]
[1644341207527,38.26634469,111.13,111.06,0.274]
[1644341207729,38.26634469,111.13,111.08,13.5013]
[1644341208127,38.26634469,111.13,111.08,13.7513]
[1644341208529,38.26634469,111.13,111.08,51.99442491]
[1644341208749,13.5015,111.15,111.08,51.99442491]
[1644341208931,24.5111,111.17,111.08,51.99442491]
[1644341209130,30.5111,111.17,111.08,51.99442491]
[1644341209330,30.5111,111.17,111.09,0.024]
[1644341209531,6.0,111.17,111.11,13.4976]
[1644341209732,46.53685134,111.16,111.11,13.7476]
[1644341210133,52.53685134,111.16,111.11,13.7476]
[1644341210432,46.53685134,111.16,111.11,13.7476]
[1644341211231,46.53685134,111.16,111.11,13.4976]
[1644341211631,46.53685134,111.16,111.1,0.024]
[1644341211833,52.53685134,111.16,111.07,1.27948688]
[1644341212034,52.53685134,111.16,111.05,1.30348688]
[1644341212234,46.53685134,111.16,111.07,0.024]
[1644341212434,46.53685134,111.16,111.07,34.39810463]
[1644341212635,46.53685134,111.16,111.08,0.024]
[1644341213037,52.53685134,111.16,111.08,0.024]
[1644341214238,66.03765134,111.16,111.08,0.024]
[1644341214438,66.03765134,111.16,111.06,0.024]
[1644341215038,170.76990683,111.16,111.06,0.024]
[1644341215240,170.76990683,111.16,111.05,0.024]
[1644341216039,171.01990683,111.16,111.05,0.024]
[1644341216260,14.57297117,111.15,111.03,0.024]
[1644341216461,54.01,111.14,111.03,0.024]
[1644341216662,67.5218,111.11,111.01,0.024]
[1644341216961,97.56571584,111.1,111.01,0.024]
[1644341217160,105.67347133,111.1,111.01,0.024]
[1644341217359,51.66347133,111.1,111.01,0.024]
[1644341217760,13.514,111.08,111.01,0.024]
[1644341217961,13.514,111.08,111.0,1.4654384]
[1644341217962,43.1531346,111.07,111.0,1.4654384]
[1644341218360,45.26089009,111.07,111.0,1.4654384]
[1644341218561,51.26089009,111.07,111.0,1.4654384]
[1644341218761,64.77179009,111.07,111.0,1.4654384]
[1644341219364,62.6640346,111.07,111.0,1.4654384]
[1644341219563,56.6640346,111.07,111.0,1.4654384]
[1644341220065,56.6640346,111.07,111.0,15.2280384]
[1644341221764,56.9140346,111.07,111.0,15.2280384]
[1644341221963,56.9140346,111.07,111.0,60.25814702]
[1644341222264,47.13805549,111.12,111.0,60.25814702]
[1644341222463,48.0126,111.14,111.0,61.5136339]
[1644341222664,54.0126,111.14,111.04,13.5041]
[1644341222867,54.0126,111.14,111.05,0.024]
[1644341223066,54.0126,111.14,111.03,45.0136]
[1644341223267,35.87590074,111.13,111.04,0.024]
[1644341223465,49.38000074,111.13,111.04,0.024]
[1644341223665,55.63000074,111.13,111.04,0.024]
[1644341224267,55.63000074,111.13,111.05,13.5064]
[1644341224466,36.12590074,111.13,111.05,13.5064]
[1644341224668,35.87590074,111.13,111.05,13.7564]
[1644341225868,36.12590074,111.13,111.05,13.7564]
[1644341226666,36.12590074,111.13,111.06,38.45516203]
[1644341226866,35.87590074,111.13,111.08,13.5008]
[1644341227066,35.87590074,111.13,111.08,51.61603835]
[1644341227267,44.9981,111.2,111.08,51.86603835]
[1644341227467,1.25673984,111.22,111.08,51.86603835]
[1644341227667,8.10775549,111.22,111.09,46.4963]
[1644341227867,2.10775549,111.22,111.1,0.024]
[1644341228067,13.4977,111.19,111.12,13.4972]
[1644341228568,19.4977,111.19,111.12,13.4972]
[1644341228766,19.7477,111.19,111.12,13.4972]
[1644341229168,39.82526989,111.18,111.12,13.4972]
[1644341229368,53.32386989,111.18,111.1,0.024]
[1644341229569,61.43162538,111.18,111.1,0.024]
[1644341229770,47.86385549,111.17,111.08,0.024]
[1644341229969,47.86385549,111.17,111.08,13.5262]
[1644341230167,51.7561,111.17,111.08,13.5022]
[1644341230370,13.5018,111.15,111.09,0.024]
[1644341230568,41.77656849,111.14,111.07,0.024]
[1644341230968,41.77656849,111.14,111.08,13.5022]
[1644341231767,47.77656849,111.14,111.08,13.5022]
[1644341231968,55.27926849,111.14,111.08,13.5022]
[1644341232168,61.52926849,111.14,111.07,13.5281]
[1644341232568,61.52926849,111.14,111.07,13.7781]
[1644341232971,61.52926849,111.14,111.07,13.5281]
[1644341233167,61.52926849,111.14,111.07,0.024]
[1644341233568,88.17682398,111.14,111.04,1.30348688]
[1644341233871,88.17682398,111.14,111.04,0.024]
[1644341234271,88.17682398,111.14,111.04,1.30348688]
[1644341234471,88.17682398,111.14,111.03,1.30348688]
[1644341234670,88.17682398,111.14,111.04,0.024]
[1644341234868,88.17682398,111.14,111.04,13.5315]
[1644341235469,88.17682398,111.14,111.04,13.7815]
[1644341235871,88.17682398,111.14,111.04,61.27472709]
[1644341236070,86.06906849,111.14,111.04,61.27472709]
[1644341236272,86.06906849,111.14,111.04,62.55421397]
[1644341236474,86.06906849,111.14,111.06,13.5055]
[1644341236677,140.07906849,111.14,111.05,13.5295]
[1644341236878,142.18682398,111.14,111.01,1.27948688]
[1644341237080,13.5131,111.1,111.0,1.27948688]
[1644341237272,67.5231,111.1,110.99,1.27948688]
[1644341237473,2.10775549,111.09,110.99,1.27948688]
[1644341237674,35.97730034,111.08,110.98,1.27948688]
[1644341238072,41.97730034,111.08,110.98,1.27948688]
[1644341238274,41.97730034,111.08,110.98,9.24465609]
[1644341238473,41.97730034,111.08,110.98,7.27948688]
[1644341238675,41.97730034,111.08,110.99,61.06596718]
[1644341238875,41.97730034,111.08,111.0,1.27948688]
[1644341239076,35.97730034,111.08,111.01,39.37760668]
[1644341239275,35.97730034,111.08,111.01,41.59277589]
[1644341239675,23.0176,111.13,111.01,42.87226277]
[1644341239876,23.0176,111.13,111.02,16.75295609]
[1644341240076,29.2676,111.13,111.02,14.78778688]
[1644341240275,13.5055,111.11,111.02,15.03778688]
[1644341240677,43.49845607,111.1,111.03,42.15122252]
[1644341241077,43.49845607,111.1,111.05,13.5048]
[1644341241278,43.49845607,111.1,111.05,62.20483485]
[1644341241680,1.25673984,111.18,111.06,1.96516921]
[1644341241879,1.25673984,111.19,111.06,1.96516921]
[1644341242078,47.06783984,111.21,111.06,9.49465609]
[1644341242278,45.8111,111.21,111.06,9.49465609]
[1644341242480,45.8111,111.21,111.07,1.96516921]
[1644341242680,13.4962,111.19,111.09,13.5003]
[1644341242880,42.95534465,111.18,111.09,13.5003]
[1644341243081,51.06310014,111.18,111.09,13.5003]
[1644341243481,51.06310014,111.18,111.09,49.59384172]
[1644341243681,48.95534465,111.18,111.09,49.84384172]
[1644341243882,13.4992,111.17,111.09,49.84384172]
[1644341244082,46.5051089,111.16,111.09,49.84384172]
[1644341244483,52.5051089,111.16,111.09,49.84384172]
[1644341244683,52.5051089,111.16,111.1,1.96273003]
[1644341244884,52.5051089,111.16,111.11,51.08529734]
[1644341245085,46.5051089,111.16,111.11,51.08529734]
[1644341245285,46.5051089,111.16,111.11,51.33529734]
[1644341246685,46.5051089,111.16,111.11,13.7458]
[1644341247488,46.5051089,111.16,111.11,13.4958]
[1644341247687,46.5051089,111.16,111.09,13.5007]
[1644341247688,52.7551089,111.16,111.09,13.5007]
[1644341248493,52.7551089,111.16,111.09,53.34834956]
[1644341248689,66.2558089,111.16,111.09,53.34834956]
[1644341248989,60.2558089,111.16,111.09,53.59834956]
[1644341249189,60.2558089,111.16,111.09,53.34834956]
[1644341249390,66.2558089,111.16,111.09,13.5007]
[1644341250590,66.2558089,111.16,111.08,13.5029]
[1644341250791,66.2558089,111.16,111.05,46.28788688]
[1644341250989,66.2558089,111.16,111.05,45.0084]
[1644341250990,113.1998089,111.16,111.05,45.0084]
[1644341251190,113.1998089,111.16,111.05,51.0084]
[1644341251392,113.1998089,111.16,111.04,1.27948688]
[1644341251593,13.509,111.12,111.01,3.82840678]
[1644341251797,54.01,111.11,111.01,1.27948688]
[1644341251995,56.11775549,111.11,110.99,1.27948688]
[1644341252193,56.11775549,111.11,110.98,1.27948688]
[1644341252392,2.54775549,111.1,110.98,0.024]
[1644341252593,35.16065081,111.09,110.99,0.024]
[1644341252792,13.5119,111.08,110.99,0.024]
[1644341252990,13.5119,111.08,110.96,1.27948688]
[1644341253191,19.5119,111.08,110.99,1.95800328]
[1644341253392,19.5119,111.08,110.97,3.23749016]
[1644341253594,46.5051089,111.07,111.0,41.43101694]
[1644341253990,13.5111,111.06,111.01,1.95800328]
[1644341254191,19.5111,111.06,111.02,44.80442638]
[1644341254393,6.0,111.06,110.99,1.98200328]
[1644341254592,6.0,111.06,111.01,1.95800328]
[1644341254792,49.2189,111.1,111.01,2.20800328]
[1644341254995,6.0,111.09,111.01,2.20800328]
[1644341255195,13.5089,111.08,111.02,0.024]
[1644341255493,6.0,111.09,111.01,0.25]
[1644341255699,6.0,111.09,111.04,46.04273772]
[1644341256095,6.0,111.09,111.04,46.29273772]
[1644341256296,49.19042327,111.1,111.04,46.29273772]
[1644341256695,49.19042327,111.1,111.04,59.79803772]
[1644341256994,24.2435,111.15,111.04,59.79803772]
[1644341257195,78.2535,111.15,111.05,0.024]
[1644341257397,2.10775549,111.14,111.05,0.024]
[1644341257610,78.2535,111.15,111.02,0.024]
[1644341257795,78.2535,111.15,110.99,1.27948688]
[1644341257994,80.36125549,111.15,111.0,0.024]
[1644341258193,121.66946335,111.14,111.0,43.01709609]
[1644341258394,121.66946335,111.14,111.01,0.024]
[1644341258594,127.66946335,111.14,111.01,0.024]
[1644341258794,38.69409636,111.11,111.04,55.7866856]
[1644341258995,38.69409636,111.11,111.04,13.508]
[1644341259294,44.69409636,111.11,111.04,13.508]
[1644341259895,13.5067,111.1,111.04,13.508]
[1644341260097,19.5067,111.1,111.04,13.508]
[1644341260298,35.77089416,111.09,111.04,13.508]
[1644341260497,35.77089416,111.09,111.03,0.024]
[1644341260796,41.77089416,111.09,111.0,0.024]
[1644341260997,55.27899416,111.09,111.0,45.0294]
[1644341261198,55.27899416,111.09,111.01,0.024]
[1644341261402,55.27899416,111.09,111.01,13.5333]
[1644341261900,55.27899416,111.09,111.02,45.41652636]
[1644341262297,55.27899416,111.09,111.02,45.44052636]
[1644341262497,55.27899416,111.09,111.02,58.95052636]
[1644341262697,55.27899416,111.09,111.02,58.92652636]
[1644341263503,55.27899416,111.09,111.01,13.5113]
[1644341264000,57.38674965,111.09,111.01,13.5113]
[1644341264200,19.7581,111.09,111.01,13.5113]
[1644341264703,24.6878,111.14,111.04,13.5051]
[1644341265106,24.6878,111.14,111.05,0.024]
[1644341265302,34.71622689,111.13,111.05,0.024]
[1644341265800,34.71622689,111.13,111.05,45.035]
[1644341266203,40.96622689,111.13,111.05,45.285]
[1644341266403,40.96622689,111.13,111.05,45.261]
[1644341266701,40.96622689,111.13,111.07,13.5033]
[1644341266901,40.96622689,111.13,111.05,45.261]
[1644341266902,94.97622689,111.13,111.05,0.024]
[1644341267101,40.96622689,111.13,111.03,0.024]
[1644341267321,40.96622689,111.13,111.02,0.024]
[1644341267701,40.96622689,111.13,111.05,13.5068]
[1644341267902,40.96622689,111.13,111.06,38.34832882]
[1644341269002,40.96622689,111.13,111.06,53.80601137]
[1644341269203,34.96622689,111.13,111.06,54.05601137]
[1644341269405,34.96622689,111.13,111.06,52.10352882]
[1644341269604,40.96622689,111.13,111.06,52.10352882]
[1644341269905,0.25,111.13,111.06,54.05601137]
[1644341270104,0.25,111.13,111.06,60.05601137]
[1644341270307,43.0,111.17,111.06,58.10352882]
[1644341270808,48.63739038,111.16,111.06,58.10352882]
[1644341271005,54.63739038,111.16,111.06,52.10352882]
[1644341271704,68.13899038,111.16,111.06,13.5052]
[1644341271905,2.10775549,111.15,111.05,13.5303]
[1644341272109,8.10775549,111.15,111.05,13.5303]
[1644341272406,6.0,111.15,111.05,13.5303]
[1644341272636,6.0,111.15,111.05,13.5063]
[1644341272837,46.53176933,111.14,111.06,40.17316366]
[1644341273040,46.53176933,111.14,111.07,13.5037]
[1644341273237,52.53176933,111.14,111.08,46.55552536]
[1644341274437,52.53176933,111.14,111.03,45.0413]
[1644341274638,52.53176933,111.14,111.03,44.5413]
[1644341274639,54.63952482,111.14,111.03,44.5413]
[1644341275438,54.63952482,111.14,111.03,79.21139147]
[1644341275841,54.63952482,111.14,111.05,13.5065]
[1644341276040,54.63952482,111.14,111.05,51.98004617]
[1644341277139,54.63952482,111.14,111.04,13.5076]
[1644341277539,52.78176933,111.14,111.04,13.7576]
[1644341278141,52.78176933,111.14,111.04,51.79288852]
[1644341278941,106.79176933,111.14,111.04,13.5076]
[1644341279143,54.88952482,111.14,111.04,13.5076]
[1644341279341,52.78176933,111.14,111.04,13.5076]
[1644341279948,52.78176933,111.14,111.05,43.93417417]
[1644341280147,52.78176933,111.14,111.07,36.85594962]
[1644341280543,46.78176933,111.14,111.07,36.85594962]
[1644341280745,46.78176933,111.14,111.06,13.5049]
[1644341281745,46.78176933,111.14,111.06,57.88100341]
[1644341282148,52.78176933,111.14,111.06,57.88100341]
[1644341283445,52.78176933,111.14,111.03,46.29778688]
[1644341283446,52.78176933,111.14,111.05,13.5065]
[1644341284346,52.78176933,111.14,111.05,53.06632578]
[1644341284747,52.78176933,111.14,111.05,53.31632578]
[1644341286248,52.78176933,111.14,111.05,13.5065]
[1644341286749,52.78176933,111.14,111.05,13.7565]
[1644341287148,52.78176933,111.14,111.06,46.20747901]
[1644341287352,52.78176933,111.14,111.06,46.45747901]
[1644341287652,52.78176933,111.14,111.06,59.96227901]
[1644341289149,19.7534,111.14,111.06,59.96227901]
[1644341289353,93.79533984,111.17,111.06,59.96227901]
[1644341289548,13.5013,111.15,111.06,65.96227901]
[1644341289748,47.5301,111.17,111.06,69.199153]
[1644341289948,47.5301,111.17,111.06,67.24176589]
[1644341290148,46.12073083,111.16,111.06,67.24176589]
[1644341291048,46.12073083,111.16,111.06,65.96227901]
[1644341291450,46.12073083,111.16,111.06,67.24176589]
[1644341291951,46.12073083,111.16,111.06,65.96227901]
[1644341292151,46.12073083,111.16,111.06,67.24176589]
[1644341292351,13.4981,111.18,111.06,67.24176589]
[1644341292555,1.25673984,111.2,111.08,0.31185822]
[1644341292750,1.25673984,111.21,111.1,13.4957]
[1644341292954,140.70007323,111.24,111.1,13.4957]
[1644341292955,1.25673984,111.22,111.1,61.7128]
[1644341293150,1.25673984,111.22,111.1,67.9628]
[1644341293351,1.25673984,111.22,111.11,38.19249977]
[1644341293352,43.94940756,111.21,111.11,38.19249977]
[1644341293654,43.94940756,111.21,111.11,44.19249977]
[1644341293852,43.94940756,111.21,111.11,44.44249977]
[1644341294254,43.94940756,111.21,111.14,13.4931]
[1644341294452,1.29359207,111.23,111.15,36.03606149]
[1644341294654,6.03685223,111.23,111.15,36.03606149]
[1644341294854,6.03685223,111.23,111.15,36.28606149]
[1644341295054,6.03685223,111.23,111.15,42.28606149]
[1644341295251,0.03685223,111.23,111.15,42.28606149]
[1644341295451,37.65577629,111.22,111.15,42.28606149]
[1644341295656,6.03685223,111.23,111.16,13.4913]
[1644341295657,0.03685223,111.23,111.16,13.4913]
[1644341295852,0.03685223,111.24,111.16,13.4913]
[1644341296053,1.25673984,111.26,111.16,19.7413]
[1644341296252,0.03685223,111.25,111.16,19.7413]
[1644341296454,0.03685223,111.26,111.16,19.7413]
[1644341296653,0.03685223,111.26,111.17,40.76722854]
[1644341296654,45.24801145,111.26,111.17,40.76722854]
[1644341296856,36.45460049,111.24,111.18,13.49]
[1644341297053,42.45460049,111.24,111.18,13.49]
[1644341297253,42.45460049,111.24,111.18,13.74]
[1644341297856,42.45460049,111.24,111.18,13.49]
[1644341298056,112.06345598,111.24,111.13,89.40340632]
[1644341298256,0.03685223,111.23,111.13,44.67660632]
[1644341298457,0.03685223,111.23,111.13,50.67660632]
[1644341298657,2.14460772,111.23,111.13,50.42660632]
[1644341298856,0.03685223,111.22,111.13,6.0]
[1644341299059,0.03685223,111.22,111.1,29.2735]
[1644341299361,2.14460772,111.22,111.1,29.2735]
[1644341299559,8.14460772,111.22,111.1,29.2735]
[1644341299860,45.21115922,111.19,111.12,34.26926919]
[1644341300068,45.21115922,111.19,111.12,40.26926919]
[1644341300460,45.21115922,111.19,111.12,6.0]
[1644341300761,58.70805922,111.19,111.12,13.4981]
[1644341300961,64.70805922,111.19,111.11,6.0]
[1644341301164,64.70805922,111.19,111.09,50.9936]
[1644341301360,64.70805922,111.19,111.09,85.15518571]
[1644341301760,64.70805922,111.19,111.11,13.4993]
[1644341302263,54.01,111.18,111.04,47.89188688]
[1644341302462,13.5038,111.15,111.04,46.6124]
[1644341302660,19.5038,111.15,111.04,52.6124]
[1644341302861,21.61155549,111.15,111.04,52.6124]
[1644341303062,35.35652061,111.14,111.05,40.30397416]
[1644341303260,80.37732061,111.14,111.06,13.5293]
[1644341303461,88.4850761,111.14,111.06,13.5293]
[1644341303961,13.5063,111.12,111.05,0.024]
[1644341304564,46.3092391,111.11,111.05,0.024]
[1644341304763,46.3092391,111.11,111.05,13.5304]
[1644341304963,46.3092391,111.11,111.06,38.4777172]
[1644341305463,46.3092391,111.11,111.05,0.024]
[1644341305664,46.3092391,111.11,111.03,45.2915]
[1644341305863,46.3092391,111.11,111.03,45.2675]
[1644341306287,46.3092391,111.11,111.03,86.93765658]
[1644341306682,59.8151391,111.11,111.05,13.5066]